Cogmind - Beta 11.1 @@@ ROGUE MODE // 2022.12.05 @ 21:03:41 Player: deadnoob Result: Destroyed by Y-54 Guardian with Gatling Laser Performance ------------- Evolutions (3) 1500 Regions Visited (11) 2200 Robots Destroyed (94) 470 Value Destroyed (2748) 2748 Prototype IDs (37) 740 Alien Tech Used (0) 0 Bonus (-1310) -1310 TOTAL SCORE: 6348 Bonus ------- Aligned with FarCom 300 Friendly Fire -1610 Cogmind --------- Core Integrity 0/700 Matter 207/300 Energy 99/100 System Corruption 0% Temperature Cool (12) Movement Core (200) Ox3 Location -7/Lower Caves Parts ------- > --- POWER (2) -------- (None) > --- PROPULSION (2) --- (None) > --- UTILITY (6) ------ Medium Storage Unit > --- WEAPON (3) ------- (None) > --- INVENTORY (10) --- XL Autogun Array Rocket Array Rocket Array Dirty Bomb Trap Dirty Bomb Trap Dirty Bomb Trap Signal Generator Peak State ------------ > --- POWER ------------ (None) > --- PROPULSION ------- Heavy Treads > --- UTILITY ---------- Improved Light Armor Plating Improved Light Armor Plating Damper Plating > --- WEAPON ----------- Enhanced Autogun Greatsword > --- INVENTORY -------- XL Autogun Array Signal Generator [Rating: 58] Favorites ----------- Power Ion Engine Engine Ion Engine Power Core Enhanced Nuclear Core Reactor Mini Fusion Reactor Propulsion Light Treads Treads Light Treads Leg Aluminum Leg Wheel Compact Wheel Flight Unit Improved VTOL Module Utility High-capacity Storage Unit Device Structural Scanner Storage High-capacity Storage Unit Processor Salvage Targeting Computer Hackware Makeshift System Shield Protection Hardened Light Armor Plating Weapon Enhanced Autogun Energy Gun EM Pulse Gun Energy Cannon Plasma Cannon Ballistic Gun Enhanced Autogun Launcher Grenade Launcher Impact Weapon Hammer Slashing Weapon Greatsword Build | -11 -10 -10 -10 -9 -8 -8 -7 -7 -7 -7 -7 ------- Run | Scr Mat Min Exi Min Mat Sto Fac Was Fac Low Low Slots Evolved 6 | . . . . . 4 . 2 . . . . Power 1 | . . . . . . . 1 . . . . Propulsion . | . . . . . . . . . . . . Utility 4 | . . . . . 4 . . . . . . Weapon 1 | . . . . . . . 1 . . . . Parts Attached 131 | 1 9 11 . 10 23 38 11 7 13 4 4 Power 11 | . 1 . . 1 3 3 1 . 2 . . Engine 9 | . 1 . . 1 3 2 1 . 1 . . Core 1 | . . . . . . . . . 1 . . Reactor 1 | . . . . . . 1 . . . . . Propulsion 21 | . 3 1 . 1 3 9 . 1 2 1 . Treads 16 | . 2 1 . . 2 7 . 1 2 1 . Leg 2 | . 1 . . 1 . . . . . . . Wheel 1 | . . . . . 1 . . . . . . Hover . | . . . . . . . . . . . . Flight 2 | . . . . . . 2 . . . . . Utility 39 | . 3 2 . 2 6 11 4 2 5 2 2 Device 11 | . 1 . . 1 4 2 1 1 . . 1 Storage 4 | . 2 . . . . . . . 2 . . Processor 4 | . . . . . 1 3 . . . . . Hackware 1 | . . . . . . . . . . 1 . Protection 19 | . . 2 . 1 1 6 3 1 3 1 1 Artifact . | . . . . . . . . . . . . Weapon 60 | 1 2 8 . 6 11 15 6 4 4 1 2 Energy Gun 20 | . 2 3 . 3 8 1 1 . 1 . 1 Energy Cannon 3 | . . . . . . 3 . . . . . Ballistic Gun 22 | 1 . 1 . 1 1 9 5 4 . . . Ballistic Cannon . | . . . . . . . . . . . . Launcher 13 | . . 4 . 2 2 1 . . 2 1 1 Special Weapon . | . . . . . . . . . . . . Impact Weapon 1 | . . . . . . 1 . . . . . Slashing Weapon 1 | . . . . . . . . . 1 . . Piercing Weapon . | . . . . . . . . . . . . Special Melee Weapon . | . . . . . . . . . . . . Unidentified Prototypes 14 | . . . . 1 2 9 . . 2 . . Parts Lost 32 | . 1 4 . 4 9 2 . 4 . . 8 Power 5 | . 1 . . 1 1 . . 1 . . 1 Propulsion 9 | . . 1 . 1 3 1 . 1 . . 2 Utility 7 | . . 1 . . 1 1 . 1 . . 3 Weapon 11 | . . 2 . 2 4 . . 1 . . 2 Highest Loss Streak 8 | . 1 3 . 4 8 1 . 4 . . 4 To Critical Strikes . | . . . . . . . . . . . . Average Slot Usage (%) 85 | . 91 99 72 77 81 98 96 37 52 76 54 Engine 8 | . 7 14 14 12 8 8 4 1 2 7 3 Treads 15 | . 7 27 28 22 4 17 15 7 8 15 8 Leg 4 | . 20 . . 4 2 . . . . . . Device 6 | . 12 11 . . 24 4 5 . . . . Storage 9 | . 14 14 14 14 9 9 7 1 2 7 7 Processor 6 | . . . . . . 21 15 4 . . . Protection 11 | . . 2 14 14 13 18 16 9 17 15 10 Energy Gun 7 | . 18 23 . 2 13 . . . 3 7 3 Ballistic Gun 9 | . 9 . . . . 17 22 8 7 7 5 Launcher 1 | . . 4 . 5 1 . . . 4 4 . Naked Turns 71 | . . . . . . . . 71 . . . Heaviest Build 83 | 12 50 51 51 51 63 73 78 79 83 83 34 Greatest Support 70 | 20 40 40 40 40 40 40 40 70 70 48 48 Greatest Overweight (x) 23 | . 2 1 1 2 16 3 1 14 23 2 10 Average Overweight (x) 1 | . . 1 1 1 2 1 1 . . . . Largest Inventory Capacity 20 | 8 20 20 20 20 20 20 20 20 10 10 10 Average Capacity 17 | 8 18 20 20 20 20 20 20 9 6 10 10 Most Carried 20 | 6 20 20 20 20 20 20 20 19 8 10 10 Average Carried 16 | 6 13 19 19 18 18 19 19 9 5 8 9 Final Capacity 20 | 8 20 20 20 20 20 20 20 5 10 10 10 Final Carried 20 | 6 19 16 20 18 18 20 19 5 8 10 10 Class Distribution -------------------- 78% | Mutant 13% | Scavenger-Mutant 5% | Scavenger-Tank Dominant Class ---------------- Mutant | -10/Materials Mutant | -10/Mines Mutant | -10/Exiles Mutant | -9/Mines Mutant | -8/Materials Mutant | -8/Storage Scavenger-Tank | -7/Factory Mutant | -7/Waste Mutant | -7/Factory Scavenger-Mutant | -7/Lower Caves Mutant | -7/Lower Caves Resources | -11 -10 -10 -10 -9 -8 -8 -7 -7 -7 -7 -7 ----------- Run | Scr Mat Min Exi Min Mat Sto Fac Was Fac Low Low Matter Collected 3179 | 200 191 294 . 17 292 1192 254 320 109 230 80 Remotely . | . . . . . . . . . . . . Salvage Created 3951 | . 502 62 . 61 503 1689 104 270 567 113 80 Parts 214 | . 33 5 . 5 20 101 5 5 32 8 . Haulers Intercepted 8 | . 1 . . . 1 5 . . 1 . . Recyclers Shooed 1 | . . . . . . 1 . . . . . Parts Field Recycled . | . . . . . . . . . . . . Retrieved Matter . | . . . . . . . . . . . . Parts Self-Destructed 5 | . . . . . . . . . . 5 . Prevented . | . . . . . . . . . . . . Kills | -11 -10 -10 -10 -9 -8 -8 -7 -7 -7 -7 -7 ------- Run | Scr Mat Min Exi Min Mat Sto Fac Was Fac Low Low Combat Hostiles Destroyed 71 | . 10 9 . 3 8 18 1 1 13 5 3 Guns 43 | . 10 1 . 1 5 18 1 1 4 1 1 AOE 27 | . . 8 . 2 2 . . . 9 4 2 Classes Destroyed 17 | . 6 1 . 1 3 2 1 1 1 1 . Worker 6 | . 2 . . . . 4 . . . . . Tunneler 2 | . . . . 2 . . . . . . . Hauler 8 | . 1 . . . 1 5 . . 1 . . Recycler 5 | . . . . . 1 2 . . 2 . . Minesweeper 1 | . . . . . . . . . . 1 . Mechanic 1 | . . . . . . . 1 . . . . Operator 2 | . 1 . . . 1 . . . . . . Watcher 4 | . 2 . . . 1 1 . . . . . Swarmer 18 | . 3 3 . . . . . . 6 4 2 Grunt 31 | . 7 . . 2 6 12 . . 4 . . Brawler 1 | . . . . . 1 . . . . . . Duelist 1 | . . . . . 1 . . . . . . Sentry 7 | . . . . . . 5 . . 2 . . Hunter 4 | . . . . . . 1 1 . . 1 1 Programmer 1 | . . . . . . . . . 1 . . Compactor 1 | . . . . . . . . 1 . . . Assembled 7 | . . 6 . 1 . . . . . . . Best Kill Streak 6 | . 4 3 . 5 3 6 1 1 6 4 2 Combat Bots Only 6 | . 3 3 . 3 3 5 1 1 6 4 2 Max Kills in Single Turn 5 | . 1 2 . 2 1 1 1 1 5 4 2 Gunslinging . | . . . . . . . . . . . . Exploded 5 | . . 2 . 1 1 . . . 5 4 2 Melee . | . . . . . . . . . . . . Uniques/NPCs Destroyed 1 | . . . . . . 1 . . . . . 01-MTF (-8/Storage) Combat | -11 -10 -10 -10 -9 -8 -8 -7 -7 -7 -7 -7 -------- Run | Scr Mat Min Exi Min Mat Sto Fac Was Fac Low Low Damage Taken 6114 | . 448 622 . 188 927 992 125 842 789 291 890 Core 1173 | . 77 97 . 4 176 117 . 418 11 15 258 Absorbed by Shields 97 | . . . . . . . . . . . 97 Redirected to Shielding 88 | . . 2 . 1 29 5 28 23 . . . Regen/Repaired (Parts) 409 | . . . . . . 273 136 . . . . Core Remaining (%) 58 | 100 . . . 28 . 46 . . . . . Volleys Fired 291 | . 33 25 . 18 34 105 8 11 25 12 20 Largest 3 | . 2 2 . 2 2 2 3 3 2 2 2 Hottest 136 | . 80 80 . 75 136 103 75 75 119 105 105 Shots Fired 529 | . 66 35 1 24 54 205 22 30 45 23 24 Gun 495 | . 66 20 1 21 47 203 22 30 40 22 23 Cannon 2 | . . . . . . 2 . . . . . Launcher 32 | . . 15 . 3 7 . . . 5 1 1 Special . | . . . . . . . . . . . . Kinetic 332 | . 19 . . 5 4 203 21 30 20 11 19 Thermal 102 | . 19 . . 14 32 2 . . 20 11 4 Explosive 32 | . . 15 . 3 7 . . . 5 1 1 Electromagnetic 63 | . 28 20 1 2 11 . 1 . . . . Robot Hit Streak 18 | . 18 4 . 5 11 11 6 9 12 4 13 Robot Miss Streak 4 | . 2 3 . 2 2 4 3 2 3 4 3 Penetration Max . | . . . . . . . . . . . . Secondary Targets 4 | . 1 . . . . 2 . 1 . . . Max Gunslinging Chain 1 | . 1 . . . . 1 . 1 . . . Shots Hit Robots 348 | . 49 11 . 7 36 139 8 23 36 19 20 Core Hits 194 | . 23 15 . 9 21 57 5 4 39 15 6 Critical Kills 1 | . . . . . . 1 . . . . . Critical Parts Destroyed 2 | . . . . . . 2 . . . . . Critical Strikes 6 | . . 1 . . 2 3 . . . . . Burn 2 | . . . . . 2 . . . . . . Destroy 3 | . . . . . . 3 . . . . . Corrupt 1 | . . 1 . . . . . . . . . Melee Attacks 1 | . . . . . . 1 . . . . . Impact 1 | . . . . . . 1 . . . . . Slashing . | . . . . . . . . . . . . Piercing . | . . . . . . . . . . . . Sneak Attacks . | . . . . . . . . . . . . Combat Hostiles . | . . . . . . . . . . . . Follow-up Attacks . | . . . . . . . . . . . . Damage Inflicted 8146 | . 724 726 . 273 1129 2354 107 466 1414 607 346 Guns 5562 | . 597 100 . 61 695 2315 107 462 658 296 271 Cannons . | . . . . . . . . . . . . Explosions 2493 | . 93 626 . 212 428 . . . 748 311 75 Melee . | . . . . . . . . . . . . Ramming 91 | . 34 . . . 6 39 . 4 8 . . Kinetic 3654 | . 121 . . 27 34 2315 107 462 265 113 210 Thermal 1469 | . 278 . . 34 520 . . . 393 183 61 Explosive 2400 | . . 626 . 212 428 . . . 748 311 75 Electromagnetic 532 | . 291 100 . . 141 . . . . . . Impact . | . . . . . . . . . . . . Slashing . | . . . . . . . . . . . . Piercing . | . . . . . . . . . . . . Highest Corruption 8 | . 1 8 8 8 . . . . . . . Average Corruption 5 | . 1 2 8 8 . . . . . . . Corruption Purged . | . . . . . . . . . . . . Corruption Blocked . | . . . . . . . . . . . . Effects 34 | . . 7 14 13 . . . . . . . Message Errors 8 | . . 4 2 2 . . . . . . . Matter Fused 9 | . . 2 4 3 . . . . . . . Heat Flow Errors 6 | . . . 4 2 . . . . . . . Energy Discharges 2 | . . 1 1 . . . . . . . . Data Loss (minor) 5 | . . . 2 3 . . . . . . . Misfires 2 | . . . 1 1 . . . . . . . Alerts 1 | . . . . 1 . . . . . . . Weapon Failures 1 | . . . . 1 . . . . . . . Overload Shots . | . . . . . . . . . . . . Overflow Damage 54 | . . 54 . . . . . . . . . Projectiles . | . . . . . . . . . . . . Explosions 54 | . . 54 . . . . . . . . . Melee . | . . . . . . . . . . . . Knockbacks . | . . . . . . . . . . . . Impact . | . . . . . . . . . . . . Kinetic . | . . . . . . . . . . . . Secondary . | . . . . . . . . . . . . Self-Inflicted Damage 340 | . . 223 . 17 41 . . 2 . 26 31 Shots 15 | . . 10 . 2 1 . . . . 1 1 Rammed 12 | . 4 . . . 1 5 . 1 1 . . Targets Rammed 23 | . 14 . . . 1 6 . 1 1 . . Kicked 9 | . 9 . . . . . . . . . . Crushed 2 | . 1 . . . . 1 . . . . . Highest Temperature 528 | . 60 122 237 262 150 209 208 400 512 528 108 Average Temperature 92 | . 25 59 83 80 66 54 75 192 144 207 46 Received Heat Transfer 1389 | . 198 . . 12 306 441 . 180 147 . 105 Effects 12 | . . . . . . . . 6 3 3 . Shutdowns 5 | . . . . . . . . 2 1 2 . Interference 4 | . . . . . . . . 3 1 . . Short Circuit 2 | . . . . . . . . 1 1 . . Damage (minor) 1 | . . . . . . . . . . 1 . Siege Activations . | . . . . . . . . . . . . Robots Corrupted . | . . . . . . . . . . . . Combat Hostiles . | . . . . . . . . . . . . Parts Fried . | . . . . . . . . . . . . Impact Corruptions . | . . . . . . . . . . . . Robots Melted 1 | . . . . . 1 . . . . . . Combat Hostiles 1 | . . . . . 1 . . . . . . Parts Melted 5 | . 2 . . . 1 . . . 1 1 . Heat Transferred 3098 | . 500 . . 75 1073 . . . 875 425 150 Parts Sabotaged . | . . . . . . . . . . . . Parts Stolen . | . . . . . . . . . . . . Parts Stripped . | . . . . . . . . . . . . Power Chain Reactions 2 | . 2 . . . . . . . . . . Missiles Intercepted . | . . . . . . . . . . . . Alert | -11 -10 -10 -10 -9 -8 -8 -7 -7 -7 -7 -7 ------- Run | Scr Mat Min Exi Min Mat Sto Fac Was Fac Low Low Peak Influence 295 | . 140 137 . 96 148 295 139 12 239 . . Initial 107 | . . 24 . . . 62 107 12 . . . Average 81 | . 41 68 . 29 73 141 81 3 60 . . Maximum Alert Level 1 | . . . . . . 1 . . 1 . . Low Security (%) 87 | 100 100 100 . 100 100 63 100 100 89 . . Level 1 12 | . . . . . . 36 . . 10 . . Level 2 . | . . . . . . . . . . . . Level 3 . | . . . . . . . . . . . . Level 4 . | . . . . . . . . . . . . Level 5 . | . . . . . . . . . . . . High Security . | . . . . . . . . . . . . Max Security . | . . . . . . . . . . . . Squads Dispatched 16 | . 5 1 . . 1 5 . 1 3 . . Investigation 6 | . 3 . . . 1 2 . . . . . Extermination 1 | . . . . . . . . . 1 . . Reinforcement 4 | . 2 . . . . . . . 2 . . Assault 2 | . . 1 . . . . . 1 . . . Garrison 3 | . . . . . . 3 . . . . . Intercept . | . . . . . . . . . . . . Searches Triggered . | . . . . . . . . . . . . Construction Impeded . | . . . . . . . . . . . . Haulers Reinforced 2 | . . . . . . . . . 2 . . Active Scanning Responses . | . . . . . . . . . . . . Cargo Convoy Interrupts . | . . . . . . . . . . . . Stealth | -11 -10 -10 -10 -9 -8 -8 -7 -7 -7 -7 -7 --------- Run | Scr Mat Min Exi Min Mat Sto Fac Was Fac Low Low Distress Signals 7 | . 2 . . . 1 2 . . 2 . . Communications Jammed . | . . . . . . . . . . . . Distress Signals . | . . . . . . . . . . . . Times Spotted 107 | . 21 12 . 2 13 25 3 11 10 5 5 Peak Tracking Total 10 | . 4 3 . 1 4 6 1 10 7 4 4 Tactical Retreats 7 | . . 5 . . . 2 . . . . . Traps | -11 -10 -10 -10 -9 -8 -8 -7 -7 -7 -7 -7 ------- Run | Scr Mat Min Exi Min Mat Sto Fac Was Fac Low Low Traps Triggered 3 | . 1 . . . . . 1 . 1 . . Indirectly . | . . . . . . . . . . . . Trap Hack Attempts . | . . . . . . . . . . . . Triggered . | . . . . . . . . . . . . Disarmed 6 | . 6 . . . . . . . . . . Reprogrammed . | . . . . . . . . . . . . Reused . | . . . . . . . . . . . . Traps Extracted . | . . . . . . . . . . . . Installed . | . . . . . . . . . . . . Triggered . | . . . . . . . . . . . . Most Traps Carried 3 | . . . . . . . . . . 3 3 Machines | -11 -10 -10 -10 -9 -8 -8 -7 -7 -7 -7 -7 ---------- Run | Scr Mat Min Exi Min Mat Sto Fac Was Fac Low Low Machines Disabled 5 | . 1 . . . 2 1 1 . . . . Max in Single Turn 1 | . 1 . . . 1 1 1 . . . . Garrison Access 1 | . . . . . . . . . 1 . . Machines Sabotaged . | . . . . . . . . . . . . Garrisons Compromised . | . . . . . . . . . . . . Overloaded Fab Kills . | . . . . . . . . . . . . Hacking | -11 -10 -10 -10 -9 -8 -8 -7 -7 -7 -7 -7 --------- Run | Scr Mat Min Exi Min Mat Sto Fac Was Fac Low Low Machines Accessed 26 | . 5 . 2 1 1 11 3 . 3 . . Terminals 18 | . 4 . . . 1 10 1 . 2 . . Fabricators . | . . . . . . . . . . . . Repair Stations 3 | . . . . . . 1 2 . . . . Recycling Units 1 | . 1 . . . . . . . . . . Scanalyzers . | . . . . . . . . . . . . Garrison Access 1 | . . . . . . . . . 1 . . Total Hacks 67 | . 16 . 2 1 3 34 7 . 4 . . Successful 41 | . 10 . 2 1 1 19 5 . 3 . . Failed 26 | . 6 . . . 2 15 2 . 1 . . Catastrophic 5 | . 1 . . . . 2 2 . . . . Database Lockouts . | . . . . . . . . . . . . Manual 31 | . 13 . 1 . 3 10 1 . 3 . . Terminals 46 | . 15 . . . 3 24 1 . 3 . . Fabricators . | . . . . . . . . . . . . Repair Stations 16 | . . . . . . 10 6 . . . . Recycling Units 1 | . 1 . . . . . . . . . . Scanalyzers . | . . . . . . . . . . . . Garrison Access 1 | . . . . . . . . . 1 . . Terminal Hacks 21 | . 9 . 2 1 . 8 . . 1 . . Record 1 | . . . 1 . . . . . . . . Robot Schematic 1 | . 1 . . . . . . . . . . Robot Analysis 5 | . 5 . . . . . . . . . . Open Door 7 | . . . . 1 . 6 . . . . . Branch Access Points 1 | . . . . . . . . . 1 . . Terminal Index 1 | . . . . . . 1 . . . . . Locate Traps 2 | . 1 . . . . 1 . . . . . Disarm Traps 1 | . 1 . . . . . . . . . . Zone Layout 1 | . 1 . . . . . . . . . . EX-Prototype ID Bank 1 | . . . 1 . . . . . . . . Fabricator Hacks . | . . . . . . . . . . . . Repair Station Hacks 13 | . . . . . . 8 5 . . . . Scan Component 7 | . . . . . . 4 3 . . . . Repair 6 | . . . . . . 4 2 . . . . Recycling Unit Hacks . | . . . . . . . . . . . . Scanalyzer . | . . . . . . . . . . . . Garrison Access Hacks 1 | . . . . . . . . . 1 . . Seal Access 1 | . . . . . . . . . 1 . . Unauthorized Hacks 6 | . 1 . . . 1 3 . . 1 . . Terminals 5 | . . . . . 1 3 . . 1 . . Assimilate 3 | . . . . . 1 2 . . . . . Botnet 2 | . . . . . . 1 . . 1 . . Fabricators . | . . . . . . . . . . . . Repair Stations . | . . . . . . . . . . . . Recycling Units 1 | . 1 . . . . . . . . . . Tunnel 1 | . 1 . . . . . . . . . . Scanalyzers . | . . . . . . . . . . . . Garrison Access . | . . . . . . . . . . . . Data Cores Recovered . | . . . . . . . . . . . . Used . | . . . . . . . . . . . . Hacking Detections 18 | . 4 . . . 1 8 3 . 2 . . Full Trace Events 5 | . 2 . . . 1 2 . . . . . Feedback Events 1 | . 1 . . . . . . . . . . Corruption 1 | . 1 . . . . . . . . . . Feedback Blocked . | . . . . . . . . . . . . Robot Schematics Acquired 1 | . 1 . . . . . . . . . . Robots Built . | . . . . . . . . . . . . Authchips . | . . . . . . . . . . . . Time . | . . . . . . . . . . . . Total Robot Build Rating . | . . . . . . . . . . . . Part Schematics Acquired . | . . . . . . . . . . . . Parts Built . | . . . . . . . . . . . . Authchips . | . . . . . . . . . . . . Time . | . . . . . . . . . . . . Total Part Build Rating . | . . . . . . . . . . . . Parts Repaired 6 | . . . . . . 4 2 . . . . Time 264 | . . . . . . 144 120 . . . . Parts Recycled . | . . . . . . . . . . . . Recycled Matter . | . . . . . . . . . . . . Retrieved Matter . | . . . . . . . . . . . . Retrieved Components . | . . . . . . . . . . . . Parts Scanalyzed . | . . . . . . . . . . . . Part Schematics Acquired . | . . . . . . . . . . . . Parts Damaged . | . . . . . . . . . . . . Bothacking | -11 -10 -10 -10 -9 -8 -8 -7 -7 -7 -7 -7 ------------ Run | Scr Mat Min Exi Min Mat Sto Fac Was Fac Low Low Used RIF Installer . | . . . . . . . . . . . . Robots Hacked . | . . . . . . . . . . . . Non-combat . | . . . . . . . . . . . . Combat . | . . . . . . . . . . . . Robot Hacks Applied . | . . . . . . . . . . . . Relay Couplers Released . | . . . . . . . . . . . . Fabnet Peak Effective % . | . . . . . . . . . . . . Robots Rewired . | . . . . . . . . . . . . Allies Hacked . | . . . . . . . . . . . . Hacks Repelled . | . . . . . . . . . . . . Allies | -11 -10 -10 -10 -9 -8 -8 -7 -7 -7 -7 -7 -------- Run | Scr Mat Min Exi Min Mat Sto Fac Was Fac Low Low Total Allies 6 | . . 1 . 3 . 1 . 1 . . . Largest Group 3 | . . 1 . 3 . 1 . 1 . . . Highest-Rated Group 100 | . . 31 . 70 . 100 . 31 . . . Highest-Rated Ally 100 | . . 31 . 31 . 100 . 31 . . . Total Orders . | . . . . . . . . . . . . Ally Attacks 24 | . . 5 . 1 . 2 . 16 . . . Total Damage 273 | . . 63 . 21 . 50 . 139 . . . Kills 2 | . . . . 1 . 1 . . . . . Allies Corrupted . | . . . . . . . . . . . . Allies Melted . | . . . . . . . . . . . . Intel | -11 -10 -10 -10 -9 -8 -8 -7 -7 -7 -7 -7 ------- Run | Scr Mat Min Exi Min Mat Sto Fac Was Fac Low Low Robot Analysis Total 5 | . 5 . . . . . . . . . . Derelict Logs Recovered 3 | . . 1 . 1 . . . . . 1 . Drone Launches 6 | . . . . . . . . 6 . . . Drone Recoveries 5 | . . . . . . . . 5 . . . Exploration | -11 -10 -10 -10 -9 -8 -8 -7 -7 -7 -7 -7 ------------- Run | Scr Mat Min Exi Min Mat Sto Fac Was Fac Low Low Turns Passed 8980 | 2 1674 902 520 426 532 2326 720 249 749 553 327 Spaces Moved 3088 | 1 508 263 215 138 172 721 223 164 330 212 141 Core 115 | . . . . . 2 . . 87 4 . 22 Treads 2497 | . 164 263 215 138 39 721 223 77 326 212 119 Legs 345 | 1 344 . . . . . . . . . . Wheels 131 | . . . . . 131 . . . . . . Hover . | . . . . . . . . . . . . Flight . | . . . . . . . . . . . . Fastest Speed 50 | 120 120 240 240 240 145 240 240 50 160 160 160 Average Speed 219 | 120 205 240 240 268 187 241 240 116 195 231 197 Slowest Speed 1200 | 120 260 240 240 320 850 400 240 750 1200 320 550 Overloaded Moves . | . . . . . . . . . . . . Propulsion Burnouts . | . . . . . . . . . . . . Robots Hopped . | . . . . . . . . . . . . Cave-ins Triggered . | . . . . . . . . . . . . Exploration Rate (%) 36 | 2 64 35 59 45 16 71 5 72 10 34 28 Regions Visited 11 Branch Regions 6 Pre-discovered Areas 2 | . 1 . 1 . . . . . . . . Known Exits Taken 2 | . . . . . . 1 . . 1 . . Unknown Exits Taken 7 | 1 1 1 1 1 1 . . . . 1 . Scrap Searched 2 | . . . . . . . . . . 1 1 Spaces Dug 73 | . . 72 . . . 1 . . . . . Terrain Destroyed 291 | . 3 107 . 29 49 1 . . 30 45 27 Melee 1 | . . . . . . 1 . . . . . Projectile . | . . . . . . . . . . . . AOE 290 | . 3 107 . 29 49 . . . 30 45 27 Terrain Rammed . | . . . . . . . . . . . . Walls Destroyed . | . . . . . . . . . . . . Machines Disabled . | . . . . . . . . . . . . Actions | -11 -10 -10 -10 -9 -8 -8 -7 -7 -7 -7 -7 --------- Run | Scr Mat Min Exi Min Mat Sto Fac Was Fac Low Low Total 4880 | 1 1060 498 223 168 328 1174 402 209 390 255 172 Wait 1179 | . 472 195 . 2 65 240 147 25 12 19 2 Move 3078 | . 507 262 214 137 171 720 223 163 329 211 141 Hop . | . . . . . . . . . . . . Pick Up 81 | . 18 3 3 1 18 24 5 1 4 4 . Fast Attach 56 | . 1 . . 2 11 21 3 3 11 1 3 Attach 28 | . 1 4 . 3 6 6 2 1 1 3 1 Detach 7 | . . . 2 . . 2 . . . 2 1 Swap 47 | 1 7 7 . 5 6 11 6 3 1 . . Drop 89 | . 7 2 4 . 16 38 8 1 6 3 4 Fire 291 | . 33 25 . 18 34 105 8 11 25 12 20 Melee 1 | . . . . . . 1 . . . . . Ram 2 | . . . . . 1 . . 1 . . . Kick 9 | . 9 . . . . . . . . . . Crush 12 | . 5 . . . . 6 . . 1 . . Escape Stasis . | . . . . . . . . . . . . Rewire . | . . . . . . . . . . . . Trap . | . . . . . . . . . . . . Miscellaneous . | . . . . . . . . . . . . Route ------- -11/Scrapyard -10/Materials (discovered 3 exits: [*Mat x2] / [*Min]) -10/Mines (discovered 2 exits: [*Mat] / *Exi) -10/Exiles -9/Mines -8/Materials (discovered 2 exits: Fac / *Sto) -8/Storage -7/Factory -7/Waste -7/Factory (discovered 2 exits: *Low x2) -7/Lower Caves -7/Lower Caves (discovered 1 exit: [*Fac]) History --------- Turn | Location | Event 3 | -11/Scrapyard | Discovered new exit (range 0) 3 | -11/Scrapyard | Entered Materials 100 | -10/Materials | Discovered new exit (range 17) 316 | -10/Materials | Build established: Mutant 387 | -10/Materials | Discovered new exit (range 12) 480 | -10/Materials | Discovered new exit (range 9) 1677 | -10/Materials | Entered Mines 1682 | -10/Mines | Met a Derelict bent on vengeance 1686 | -10/Mines | Core integrity fell below 50% 1698 | -10/Mines | Learned Materials terminal intel 1718 | -10/Mines | Met a Derelict testing a Signal Generator 1744 | -10/Mines | Found Signal Generator 1906 | -10/Mines | Assembled infested the area 2463 | -10/Mines | Lost 3 parts (1u2w) 2516 | -10/Mines | Discovered new exit (range 14) 2569 | -10/Mines | Deemed a non-threat by the Exiles lab entrance 2569 | -10/Mines | Discovered new exit (range 5) 2579 | -10/Mines | Entered Exiles 2654 | -10/Exiles | Met 8R-AWN 2698 | -10/Exiles | Met EX-HEX 2760 | -10/Exiles | Met EX-BIN 2794 | -10/Exiles | Aligned with FarCom system 2796 | -10/Exiles | Given EX-Vault access code 2851 | -10/Exiles | Opened EX-Vault 2873 | -10/Exiles | Found XL Autogun Array 2924 | -10/Exiles | Warned to stay clear of 0b10 Research branches 2993 | -10/Exiles | Met EX-DEC 3003 | -10/Exiles | Learned location of Zion (-7) 3073 | -10/Exiles | Discovered new exit (range 14) 3099 | -10/Exiles | Left Exiles lab with XL Autogun Array 3099 | -10/Exiles | Entered Mines 3119 | -9/Mines | Received a Mining Laser from a helpful Derelict 3269 | -9/Mines | Excavation squad dispatched 3269 | -9/Mines | A large section of the Mines collapsed 3400 | -9/Mines | Lost 4 parts (1p1n2w) 3431 | -9/Mines | Discovered new exit (range 12) 3445 | -9/Mines | Found the Drone Emporium 3457 | -9/Mines | Learned location of 1 exit from Materials 3463 | -9/Mines | Found Prototype Device 3464 | -9/Mines | Identified Splice Drone Bay 3525 | -9/Mines | Entered Materials 3525 | -8/Materials | Evolved 4 slots: Utility x4 3526 | -8/Materials | Identified exit to Factory 3527 | -8/Materials | Loaded intel: 12 terminal locations 3700 | -8/Materials | Lost 8 parts (1p2n1u4w) 3961 | -8/Materials | Discovered new exit (range 15) 4057 | -8/Materials | Entered Storage 5127 | -8/Storage | Discovered exit to Factory (range 12) 5636 | -8/Storage | Core integrity fell below 50% 5649 | -8/Storage | Garrison activated, responded to threat 5893 | -8/Storage | Met 01-MTF 5982 | -8/Storage | Repaired Hrd. Light Armor Plating 6043 | -8/Storage | Repaired Enh. Autogun 6073 | -8/Storage | Repaired Lgt. Treads 6100 | -8/Storage | Repaired Lgt. Treads 6238 | -8/Storage | Destroyed 01-MTF 6258 | -8/Storage | Found 01-MTF's Shockpuncher 6281 | -8/Storage | Found Prototype Device 6281 | -8/Storage | Identified 01-MTF's Autohacker 6383 | -8/Storage | Entered Factory 6383 | -7/Factory | Evolved 2 slots: Power x1, Weapon x1 6923 | -7/Factory | Build established: Scavenger-Tank 7022 | -7/Factory | Repaired Enh. Autogun 7083 | -7/Factory | Repaired Enh. Autogun 7103 | -7/Factory | Sucked down chute 7103 | -7/Factory | Entered Waste 7104 | -7/Waste | Met a frightened Derelict 7144 | -7/Waste | Spotted C-40 Crusher 7161 | -7/Waste | Destroyed C-40 Crusher 7165 | -7/Waste | Spotted C-40 Crusher 7165 | -7/Waste | Spotted C-40 Crusher 7171 | -7/Waste | Crushed by Compactor (1 part destroyed, 2 dropped) 7174 | -7/Waste | Crushed by Compactor (1 part destroyed, 2 dropped) 7177 | -7/Waste | Crushed by Compactor (1 part destroyed, 1 dropped) 7178 | -7/Waste | Crushed by Compactor (1 part destroyed, 1 dropped) 7178 | -7/Waste | Released all parts (4) 7179 | -7/Waste | Spotted C-40 Crusher 7179 | -7/Waste | Spotted C-40 Crusher 7192 | -7/Waste | Spotted C-40 Crusher 7209 | -7/Waste | Lost 4 parts (1p1n1u1w) 7237 | -7/Waste | Core integrity fell below 50% 7249 | -7/Waste | Found Damper Plating 7335 | -7/Waste | Discovered new exit (range 11) 7352 | -7/Waste | Entered Factory 7468 | -7/Factory | Build established: Mutant 7643 | -7/Factory | Identified exit to Lower Caves 7933 | -7/Factory | Found Prototype Launcher 7933 | -7/Factory | Identified Rocket Array 7940 | -7/Factory | Found Rocket Array 8101 | -7/Factory | Entered Lower Caves 8116 | -7/Lower Caves | Build established: Scavenger-Mutant 8486 | -7/Lower Caves | Learned Factory emergency access door positions 8582 | -7/Lower Caves | Discovered new exit (range 6) 8654 | -7/Lower Caves | Entered another Lower Caves area 8655 | -7/Lower Caves | Encountered a Warlord checkpoint 8661 | -7/Lower Caves | Discovered new exit (range 10) 8836 | -7/Lower Caves | Lost 4 parts (1p1n1u1w) 8879 | -7/Lower Caves | Spotted B-75 Beast 8938 | -7/Lower Caves | Core integrity fell below 20% 8968 | -7/Lower Caves | Lost 4 parts (1n2u1w) 8975 | -7/Lower Caves | Attracted the attention of an 0b10 checkpoint 8981 | -7/Lower Caves | Destroyed by Y-54 Guardian with Gatling Laser Last Messages --------------- 08888_ Found Reaction Control System. 08888_ Found Imp. Shield Generator. 08888_ Found 18 Matter. 08889_ Acquired 18 matter. 08893_ Acquired Imp. Shield Generator. 08894_ Enh. Autogun destroyed. 08897_ Acquired Mak. Thermal Plating. 08897_ Critical hit (Destroy). 08901_ Acquired Arc Projector. 08907_ Acquired 10 matter. 08923_ Lgt. Treads destroyed. 08934_ Imp. Shield Generator destroyed. 08935_ Dropped Arc Projector. 08936_ Dropped Mak. Thermal Plating. 08936_ Dropped Imp. Light Armor Plating. 08937_ Dropped Enh. Nuclear Core. 08937_ Mak. System Shield destroyed. 08937_ Critical hit (Blast). 08975_ Y-54 Guardian: "INTERCEPTING UNREGISTERED DERELICT." 08976_ S-27 Virus destroyed. Map ----- +----------------------------------------------------+ | ?????????????????????????????????????????????????? | | ?????????????????????????????????????????????????? | | ?????????????????????????????????????????????????? | | ?????????????????????????????????????????????????? | | ??????????????????????????????????#####??????????? | | ??????????????????????? ????????? #??????????? | | ???????????????????????% ???????? #??????????? | | ???????????????????????# ??????# #??????????? | | ???????????????????????# ##?### #??????????? | | ???????????????????????# % "## # #???????##? | | ???????????????????????# """# ##?????# #? | | ???????????????????????# ! "#????? ## | | ???????????????????????# "#???# | | ???????????????????????# ## "#### | | ??????????????????????# ???# B #?? | | ??????????????????????## ??????## ##?## | | ?????????????????????????????????#;; ### ##??# | | ???????????????????????????????? ;;" "## #???# | | ??????????????????#####???????? # "" ##??# | | ?????????????????## #?????## ##"# ##?# | | ????????????????## ##???# ??##* ### | | ????????????????# ##?# ??## [!% | | ??????????????### ## ## #??# ! ## | | ??????????????# ## #??## ## | | ??????????????# #???## ## ## | | ???????????# @ ####### ### ### | | ?????????# %% # # ### #?# #?# | | ?????????# Y ##### # #?# #?### | | ?????????? ????# #### ######?# #???? | | ??????????# ????# ##??###??????# #???? | | ??????????? % ?????# #????????????# #???? | | ??????????? ## ??????# #????????????# #???? | | ??????????? ?? ??????# #????????????# #???? | | ????????????? ### ???????# #???????????? #???? | | ????????????#??? ???????? ???????????? #???? | | ???????????????##????????? ???????????? #???? | | ?????????????????????????? ???????????? %???? | | ????????????????????????? ????????????# ????? | | ????????????????????????? ????????????? %????? | | ????????????????????????? ???????????????????? | | ????????????????????????? ### ???????????????????? | | ????????????????????????????? ???????????????????? | | ?????????????????????????????????????????????????? | | ?????????????????????????????????????????????????? | | ?????????????????????????????????????????????????? | | ?????????????????????????????????????????????????? | | ?????????????????????????????????????????????????? | | ?????????????????????????????????????????????????? | | ?????????????????????????????????????????????????? | | ?????????????????????????????????????????????????? | +----------------------------------------------------+ Best States ------------- Heat Dissipation 72 Coolant Potential 50 Energy Generation 30 Energy Capacity 325 Matter Stores 300 Matter Capacity 300 Sight Range 20 Terrain Scan Density 10 Armor Coverage 1900 Resistance: TH 10 Resistance: EM 90 Core Shielding 20 Weapon Shielding 66 Evasion (%) 55 Recoil Reduction 2 Salvage Targeting 2 Defensive Hacking 11 Item Schematics ----------------- None Robot Schematics ------------------ M-13 Machinist | -10/Materials | Hacked Fabricated ------------ Nothing Alien Tech Used ----------------- None Achievements -------------- None Challenges ------------ None Game ------ Seed AnalysisAlertExoskeleton Manual? 0 Play Time 00:58:30 Cumulative 149.6 hours Start 2022.12.05 @ 20:05:44 End 2022.12.05 @ 21:03:41 Sessions 1 Manual Loads 0 Difficulty Rogue Special Mode None Game No. 185 Rogue 185 Adventurer 0 Explorer 0 Win Type - Total 2 Types 1/0/0/1/0/0/0/0/0 Lore% 76 Gallery% 76 Achievement% 60 Wizard Run 0 Options --------- ASCII 0 Keyboard 0 Movement Numpad Keybinds 0 Fullscreen 2 Font 18/SmallcapsGlow Map View 76x50 Tactical HUD 1 Map Filters NONE Filters NONE Steam 1 RUN: b1440a24-4ae2-4409-96b6-b1c903d33890